[Event "Cabo Verde Open 2022"]
[Site "Mindelo-S. Vicente"]
[Date "2022.04.25"]
[Round "4.7"]
[White "Pereira, Eder Marcio"]
[Black "Lesbros, Bernard"]
[Result "0-1"]
[ECO "A45"]
[WhiteElo "1728"]
[BlackElo "1865"]
[Annotator "NA RC COMBH"]
[PlyCount "121"]
[EventDate "2022.04.22"]
[EventType "swiss"]
[SourceTitle "playchess.com"]
[Source "ChessBase"]
[SourceQuality "1"]
[TimeControl "40/5400+30:1800+30"]

{[%evp 14,121,0,0,23,32767,13,9,22,23,19,22,23,10,56,52,66,40,38,40,89,101,96,101,89,-12,24,36,41,0,23,-53,-39,-47,-53,-120,-104,-122,-35,-52,-43,-63,-85,-69,-7,-12,38,0,0,-89,-90,-91,-83,-147,-124,-182,-168,-181,-192,-193,-208,-218,-196,-333,-343,-365,-412,-385,-196,-174,-162,-192,-209,-193,-193,-263,-321,-434,-312,-419,-294,-387,-370,-242,-360,-405,-472,-410,-526,-727,-533,-619,-758,-533,-808,-989,-2218,-1189,-5121,-1479,-1191,-10600,-29967,-7022,-12366,-12846,-29963,-29965,-29977,-29976]} 1. d4 {[%emt 0:02:49]} Nf6 {[%emt 0:00:16]} 2. Bf4 {[%emt 0:02:21]} c5 {[%emt 0:00:19]} 3. e3 {[%emt 0:00:10]} Qb6 {[%emt 0:02:50]} 4. Nc3 {[%emt 0:00:51]} a6 {[%emt 0:00:49]} 5. a3 {[%emt 0:01:38]} e6 {[%emt 0:06:39]} 6. Be2 {[%emt 0:04:52]} d5 {[%emt 0:03:52]} 7. Nf3 {[%emt 0:03:50]} Bd7 {[%emt 0:04:49]} 8. Rb1 {[%emt 0:04:07]} cxd4 {[%emt 0:05:41]} 9. exd4 {[%emt 0:05:56]} Bd6 {[%emt 0:07:41]} 10. Qd2 {[%emt 0:10:07]} Qc7 {[%emt 0:07:30]} 11. Bxd6 {[%emt 0:05:05]} Qxd6 {[%emt 0:00:12]} 12. O-O {[%emt 0:00:14]} Nc6 {[%emt 0:03:34]} 13. Qg5 {[%emt 0:05:07]} Qf8 {[%emt 0:06:58]} (13... O-O $11) 14. Bd3 {[%emt 0:01:24]} h6 {[%emt 0:05:10]} 15. Qf4 {[%emt 0:00:52]} Qe7 {[%emt 0:01:10]} 16. Rfe1 {[%emt 0:00:41]} g5 {[%emt 0:04:02]} ({Better is} 16... O-O $14) 17. Qe3 {[%emt 0:11:21]} ({Don't do} 17. Qc7 b5 $14) 17... Ng4 {[%emt 0:13:35]} 18. Qe2 {[%emt 0:00:24]} Qd6 {[%emt 0:03:21]} 19. Ne5 {[%emt 0:06:11]} ({White should play} 19. g3 $16) 19... Ngxe5 {[%emt 0:05:57]} (19... h5 $5 {[%cal Rc6d4]} 20. Qd2 O-O-O $11) 20. dxe5 {[%emt 0:01:14]} Qc7 {[%emt 0:02:46]} 21. b4 {[%emt 0:06:59]} Rc8 {[%emt 0:01:14]} (21... Nd4 $5 22. Qd2 Rc8 $15) 22. Nd1 {[%emt 0:03:16]} (22. Qf3 $11) 22... Nd4 {[%emt 0:03:00]} 23. Qd2 {[%emt 0:06:22]} Bb5 {[%emt 0:03:14]} (23... Nxc2 $2 24. Rc1 $18) 24. Bxb5+ {[%emt 0:07:19]} ({White should try} 24. c3 $15 Bxd3 25. Qxd3) 24... Nxb5 {[%emt 0:00:12]} 25. a4 {[%emt 0:01:19] [#]} Na3 {[%emt 0:01:28]} (25... Nc3 $1 $17 {[%cal Rc3b1]} 26. Rc1 Nxa4) 26. Rc1 {[%emt 0:00:12]} Nc4 {[%emt 0:00:08]} (26... Nxc2 $2 27. Re2 $18 (27. Ne3 Qxe5 28. Rxc2 Rxc2 $18)) (26... a5 $5) 27. Qd4 {[%emt 0:00:25]} Qb6 {[%emt 0:01:33]} 28. c3 {[%emt 0:01:59] [#]} Qc6 {[%emt 0:01:13]} ({Better is} 28... Qxd4 $1 $17 29. cxd4 Ke7) 29. a5 {[%emt 0:01:52]} Na3 {[%emt 0:01:43]} (29... b6 $11) 30. f4 {[%emt 0:02:49]} Nb5 {[%emt 0:01:05]} (30... Qc4 $5 {[%cal Rc4d4]} 31. Qb6 Qxf4 32. Qxb7 O-O $11) 31. Qd3 {[%emt 0:01:46] [#]} (31. Qd2 $14 {stays ahead.}) 31... Qc4 $1 {[%emt 0:00:17]} 32. Qxc4 {[%emt 0:00:58]} Rxc4 {[%emt 0:00:17]} 33. fxg5 {[%emt 0:00:51]} ({White should play} 33. Nb2 Rxc3 34. Na4 Rxc1 35. Rxc1) 33... hxg5 {[%emt 0:00:19]} 34. Re3 {[%emt 0:00:20]} d4 {[%emt 0:00:53]} 35. Rg3 {[%emt 0:01:08]} Ke7 {[%emt 0:02:38]} 36. Nb2 {[%emt 0:00:49]} Rxc3 {[%emt 0:00:25]} 37. Rgxc3 {[%emt 0:00:12]} dxc3 {[%emt 0:00:52]} 38. Nd3 {[%emt 0:00:09]} (38. Na4 {was forced.}) 38... Rh4 {[%emt 0:01:07]} 39. h3 {[%emt 0:01:16]} Rd4 {[%emt 0:00:12]} 40. Nc5 {[%emt 0:00:00]} Rd2 {[%emt 0:00:00]} (40... Rxb4 $142 41. Kf2 Rb2+ 42. Kf1 Rd2) 41. Ne4 {[%emt 0:07:17]} Rb2 {[%emt 0:06:32]} 42. Nxc3 {[%emt 0:03:33]} Nxc3 {[%emt 0:00:18]} ({Worse is} 42... Rxb4 43. Rb1 Rxb1+ 44. Nxb1 $17) 43. Rxc3 {[%emt 0:00:10]} Rxb4 {[%emt 0:00:19]} 44. Rc7+ {[%emt 0:00:08]} (44. Rg3 {was the only chance.}) 44... Kf8 {[%emt 0:00:19]} 45. Kf2 {[%emt 0:00:12]} Rb5 {[%emt 0:00:30]} 46. Kf3 {[%emt 0:00:15]} Rxe5 {[%emt 0:00:57]} ({Not} 46... Rxa5 $2 47. Rxb7 Rxe5 48. g3 $19) 47. Rxb7 {[%emt 0:00:19]} Rxa5 {[%emt 0:00:33]} 48. Kg4 {[%emt 0:00:56]} Kg7 {[%emt 0:01:09]} 49. g3 {[%emt 0:04:22]} (49. Kh5 {was the only defense.}) 49... Kg6 {[%emt 0:01:16]} 50. Kf3 {[%emt 0:00:54]} f5 {[%emt 0:02:00]} 51. Re7 {[%emt 0:00:34]} Kf6 {[%emt 0:00:32]} 52. Ra7 {[%emt 0:00:13]} Ra3+ {[%emt 0:00:23]} 53. Kg2 {[%emt 0:00:11]} a5 {[%emt 0:00:13]} 54. h4 {[%emt 0:00:07]} gxh4 {[%emt 0:00:31]} 55. gxh4 {[%emt 0:00:09]} a4 {[%emt 0:01:46]} 56. h5 {[%emt 0:00:51]} Ra2+ {[%emt 0:00:59]} (56... Kg5 $142 57. Ra6 Kxh5 58. Rxe6 Kg4 59. Rg6+ Kf4) 57. Kh1 {[%emt 0:02:39]} Kg5 {[%emt 0:01:21]} 58. h6 {[%emt 0:00:10]} Kxh6 {[%emt 0:00:22]} 59. Ra6 {[%emt 0:00:07]} Re2 {[%emt 0:00:42]} 60. Rxa4 {[%emt 0:00:12]} Kg5 {[%emt 0:00:35]} 61. Kg1 {[%emt 0:18:26]} 0-1

[Event "Cabo Verde Open 2022"]
[Site "Mindelo-S. Vicente"]
[Date "2022.04.26"]
[Round "5.1"]
[White "Strikovic, Aleksa"]
[Black "Ortega Amarelle, Mariano"]
[Result "1/2-1/2"]
[ECO "B14"]
[WhiteElo "2489"]
[BlackElo "2476"]
[Annotator "TA"]
[PlyCount "74"]
[EventDate "2022.04.22"]
[EventType "swiss"]
[SourceTitle "playchess.com"]
[Source "ChessBase"]
[SourceQuality "1"]
[TimeControl "40/5400+30:1800+30"]

{[%evp 16,74,16,-6,13,6,9,6,28,12,17,16,27,17,19,14,33,22,63,0,7,16,18,18,28,0,0,0,0,0,0,0,0,0,7,8,9,4,6,-3,-5,-27,-16,-17,-10,-6,0,-23,-11,-12,0,0,0,-9,0,0,0,0,0,-4,0]} 1. c4 {[%emt 0:00:03]} c6 {[%emt 0:00:28]} 2. e4 {[%emt 0:02:54]} d5 {[%emt 0:00:10]} 3. exd5 {[%emt 0:00:17]} cxd5 {[%emt 0:00:08]} 4. d4 {[%emt 0:01:06]} Nf6 {[%emt 0:00:27]} 5. Nc3 {[%emt 0:00:16]} g6 {[%emt 0:06:51]} 6. cxd5 {[%emt 0:11:38]} Nxd5 {[%emt 0:00:10]} 7. Qb3 {[%emt 0:00:31]} Nb6 {[%emt 0:00:35]} 8. Bb5+ {[%emt 0:05:58] 8.Nf3 might become the main line.} Bd7 {[%emt 0:03:10]} 9. a4 {[%emt 0:00:40][%cal Ba2a4,Ba4a5][%mdl 32]} Bg7 {[%emt 0:00:53] B14: Caro-Kann: Panov-Botvinnik Attack with 5...e6 and 5...g6.} 10. Nf3 {[%emt 0:03:55]} O-O {[%emt 0:01:28]} 11. Bxd7 $1 {[%emt 0:00:59]} N8xd7 {[%emt 0:20:33]} 12. a5 {[%emt 0:01:28]} Nc8 {[%emt 0:00:09] [#]} 13. O-O $146 {[%emt 0:00:36]} ({Predecessor:} 13. Qxb7 Nd6 14. Qa6 Nb8 15. Qe2 Nc6 16. a6 Nxd4 17. Nxd4 Bxd4 18. O-O Re8 19. Rd1 Bxc3 20. bxc3 {½-½ (57) Daghli,A (2328)-Kasparov,S (2472) Amol 2018}) 13... b6 {[%emt 0:31:00]} 14. a6 {[%emt 0:03:18]} e6 {[%emt 0:00:53]} 15. Bg5 {[%emt 0:12:26]} Ne7 {[%emt 0:00:47]} 16. Rfe1 {[%emt 0:03:33][%cal Oc3d5] Black must now prevent Nd5!} h6 {[%emt 0:05:21]} 17. Bh4 {[%emt 0:13:37]} (17. Bxe7 $14 Qxe7 18. Nb5) 17... g5 {[%emt 0:07:44]} 18. Bg3 {[%emt 0:00:02]} Nf6 {[%emt 0:00:37]} 19. Be5 {[%emt 0:15:02]} Nfd5 {[%emt 0:00:20]} 20. Bxg7 {[%emt 0:00:23]} (20. h4 $5 {[%cal Rh4g5]}) 20... Kxg7 {[%emt 0:00:10]} 21. h4 {[%emt 0:02:16]} Nxc3 {[%emt 0:10:28]} 22. bxc3 {[%emt 0:01:02]} Ng6 {[%emt 0:00:03]} 23. hxg5 {[%emt 0:01:07]} hxg5 {[%emt 0:00:02]} 24. Qb5 {[%emt 0:00:23]} g4 {[%emt 0:03:13]} 25. Ne5 {[%emt 0:02:26] aiming for Re4.} Qh4 $132 {[%emt 0:00:26][%mdl 2048] [#] ( -> ...Rh8). Black is fighting back} 26. Nxg6 {[%emt 0:01:25] Active counter play!} Kxg6 {[%emt 0:00:03]} 27. Qd3+ {[%emt 0:05:45]} Kg7 {[%emt 0:00:23]} 28. g3 {[%emt 0:02:58]} Qh3 {[%emt 0:00:25]} 29. Qf1 {[%emt 0:01:21]} (29. Qe4 {feels hotter.} Rh8 30. Qg2 Rad8 31. Re5) 29... Qxf1+ {[%emt 0:00:30]} (29... Rh8 {is interesting.} 30. Qg2 Rad8 31. Re5 Rd7) 30. Kxf1 $11 {[%emt 0:00:09][%mdl 4096] Endgame KRR-KRR} Rac8 {[%emt 0:00:52]} 31. Ra3 {[%emt 0:01:37]} Kf6 {[%emt 0:01:58]} 32. Re4 {[%emt 0:01:20] The position is equal.} Kf5 {[%emt 0:02:01]} 33. Re5+ {[%emt 0:00:16]} Kf6 {[%emt 0:00:09]} 34. Ke2 {[%emt 0:00:14]} Rc4 {[%emt 0:00:43]} 35. Re4 {[%emt 0:03:03]} Kg5 {[%emt 0:01:43]} 36. Re5+ {[%emt 0:00:59]} Kf6 {[%emt 0:00:21]} 37. Re4 {[%emt 0:00:07]} Kg5 {[%emt 0:00:00] Weighted Error Value: White=0.07 (flawless) /Black=0.06 (flawless)} 1/2-1/2

[Event "Cabo Verde Open 2022"]
[Site "Mindelo-S. Vicente"]
[Date "2022.04.25"]
[Round "5.2"]
[White "Fernandes, Antonio"]
[Black "Galego, Luis"]
[Result "1/2-1/2"]
[ECO "A55"]
[WhiteElo "2313"]
[BlackElo "2474"]
[Annotator "TA"]
[PlyCount "34"]
[EventDate "2022.04.22"]
[EventType "swiss"]
[SourceTitle "playchess.com"]
[Source "ChessBase"]
[SourceQuality "1"]
[TimeControl "40/5400+30:1800+30"]

{[%evp 16,21,44,32,44,20,32,22]} 1. Nf3 {[%emt 0:00:59]} Nf6 {[%emt 0:00:28]} 2. g3 {[%emt 0:00:07]} d6 {[%emt 0:01:35]} 3. d4 {[%emt 0:00:30]} Nbd7 {[%emt 0:01:17]} 4. Bg2 {[%emt 0:00:16]} e5 {[%emt 0:00:51]} 5. O-O {[%emt 0:04:10]} Be7 {[%emt 0:00:09]} 6. c4 {[%emt 0:00:09]} O-O {[%emt 0:00:13]} 7. Nc3 {[%emt 0:00:05]} c6 {[%emt 0:00:43]} 8. e4 {[%emt 0:00:17]} a6 {[%emt 0:00:26]} 9. b3 {[%emt 0:01:10]} b5 {[%emt 0:00:34] A55: Old Indian Defence with Nf3 and e4.} 10. Re1 {[%emt 0:00:34]} Bb7 {[%emt 0:00:52]} 11. Bb2 {[%emt 0:02:09] [#]} {Predecessor:} Qb8 $146 12. Qc2 Re8 13. a4 bxc4 14. bxc4 Bd8 15. a5 Qa7 16. Red1 Bc7 17. h3 Rab8 {1-0 (43) Fominyh,A (2497)-Karayev,A (2261) Tomsk 2008} 1/2-1/2

[Event "Cabo Verde Open 2022"]
[Site "Mindelo-S. Vicente"]
[Date "2022.04.25"]
[Round "5.3"]
[White "Varela La Madrid, Tilsia Carolina"]
[Black "Del Rio De Angelis, Salvador G."]
[Result "0-1"]
[ECO "B08"]
[WhiteElo "2097"]
[BlackElo "2452"]
[Annotator "TA"]
[PlyCount "73"]
[EventDate "2022.04.22"]
[EventType "swiss"]
[SourceTitle "playchess.com"]
[Source "ChessBase"]
[SourceQuality "1"]
[TimeControl "40/5400+30:1800+30"]

{[%evp 11,73,22,31,-51,-53,-49,-50,-59,-44,-135,-135,-295,-293,-304,-293,-291,-259,-412,-414,-432,-356,-373,-205,-202,-204,-230,-237,-231,-232,-242,-247,-264,-245,-322,-331,-332,-334,-331,-325,-333,-325,-362,-321,-344,-322,-376,-360,-459,-433,-459,-423,-418,-448,-438,-440,-419,-410,-499,-481,-478,-453,-563,-554,-29986]} 1. e4 {[%emt 0:00:02]} d6 {[%emt 0:01:14]} 2. d4 {[%emt 0:00:08]} Nf6 {[%emt 0:00:12]} 3. Nc3 {[%emt 0:00:24]} g6 {[%emt 0:00:18]} 4. Nf3 {[%emt 0:00:53]} Bg7 {[%emt 0:00:28]} 5. h3 {[%emt 0:00:44]} O-O {[%emt 0:08:40]} 6. Be3 {[%emt 0:00:31]} d5 {[%emt 0:00:30] [#]} 7. Qd2 $146 {[%emt 0:03:06] B08: Pirc Defence: Classical System.} ({White should play} 7. exd5 $14 Nxd5 8. Nxd5 Qxd5 9. Be2) ({Predecessor:} 7. e5 Ne4 8. Bd3 Nxc3 9. bxc3 c5 10. O-O c4 11. Be2 Nc6 12. Qd2 f6 13. exf6 exf6 14. Rfe1 Bf5 15. Nh4 Be6 16. Bh6 Qd7 17. Rab1 Rae8 18. Bf1 {0-1 (29) Andreikin,D (2725)-Onischuk,V (2622) Chess.com INT 2021}) 7... Nxe4 $15 {[%emt 0:03:23]} 8. Nxe4 {[%emt 0:00:14]} dxe4 {[%emt 0:00:10]} 9. Ng5 {[%emt 0:00:10] Black is slightly better.} c5 {[%emt 0:01:26][%cal Rc5d4]} 10. Nxe4 {[%emt 0:01:40]} (10. d5 $15) 10... cxd4 $17 {[%emt 0:00:44]} 11. O-O-O $2 {[%emt 0:03:50] [#]} (11. Bh6 $17) 11... Nc6 $1 $19 {[%emt 0:01:11]} 12. Bh6 {[%emt 0:00:35] [#]} Qd5 $1 {[%emt 0:00:38][%csl LRa2,LRe4]} 13. Bxg7 {[%emt 0:01:04]} Kxg7 {[%emt 0:00:07]} 14. Ng3 {[%emt 0:05:18]} (14. Nc3 {might work better.} Qe6 15. Nb1) 14... Qxa2 {[%emt 0:02:07][%cal Ra2a1]} 15. Qg5 {[%emt 0:02:12]} Qa1+ {[%emt 0:01:16]} 16. Kd2 {[%emt 0:00:07]} Qa5+ {[%emt 0:00:04]} (16... Qxb2 $142 17. Bd3 Qc3+ 18. Ke2 f5 19. Nh5+ Kf7) 17. Qxa5 {[%emt 0:00:07]} Nxa5 {[%emt 0:00:04]} 18. Re1 {[%emt 0:01:26]} Be6 {[%emt 0:01:23]} 19. Bd3 {[%emt 0:00:56]} Rfd8 {[%emt 0:02:20]} 20. Re5 {[%emt 0:00:35]} Nc6 {[%emt 0:02:15]} 21. Rb5 {[%emt 0:00:17]} b6 {[%emt 0:00:26]} 22. Be4 {[%emt 0:00:34]} Rac8 {[%emt 0:00:09][%cal Od4d3]} 23. Ra1 {[%emt 0:00:28]} Bc4 {[%emt 0:02:53]} 24. Bxc6 {[%emt 0:03:25]} Rxc6 {[%emt 0:00:06]} 25. Re5 {[%emt 0:00:35]} Rc7 {[%emt 0:00:27]} 26. Ra4 {[%emt 0:02:03]} a6 {[%emt 0:06:42]} 27. Re4 {[%emt 0:02:38]} Rd6 {[%emt 0:00:29]} 28. Rg4 {[%emt 0:02:08] And now Nf5+ would win.} Kf8 {[%emt 0:02:06]} 29. b3 {[%emt 0:00:52] [#]} b5 {[%emt 0:01:20]} 30. Ra2 {[%emt 0:01:15]} (30. Ra5 f5) 30... Be6 {[%emt 0:00:14]} 31. Rh4 {[%emt 0:00:30]} d3 {[%emt 0:05:18] ( -> ...dxc2+)} 32. c3 {[%emt 0:00:36]} Bxb3 {[%emt 0:00:55]} 33. Rb2 {[%emt 0:00:19]} Bd5 {[%emt 0:01:15]} 34. Rxh7 {[%emt 0:03:36]} Kg8 {[%emt 0:00:18] Black is clearly winning.} 35. Rh4 {[%emt 0:00:15]} Bxg2 {[%emt 0:00:07]} 36. Rb1 {[%emt 0:01:24]} Rc4 {[%emt 0:05:21]} 37. Ke1 {[%emt 1:04:03] Black took control after the opening.  Weighted Error Value: White=0.42/Black=0.14 (very precise)} 0-1

[Event "Cabo Verde Open 2022"]
[Site "Mindelo-S. Vicente"]
[Date "2022.04.26"]
[Round "5.4"]
[White "Rodriguez Guevara, Celia M."]
[Black "L`Ami, Alina"]
[Result "0-1"]
[ECO "B56"]
[WhiteElo "1849"]
[BlackElo "2287"]
[Annotator "TA"]
[PlyCount "64"]
[EventDate "2022.04.22"]
[EventType "swiss"]
[SourceTitle "playchess.com"]
[Source "ChessBase"]
[SourceQuality "1"]
[TimeControl "40/5400+30:1800+30"]

{[%evp 11,64,22,32,-19,0,-5,0,-7,0,0,0,-8,0,0,0,-118,-116,-139,-135,-360,-334,-502,-412,-537,-530,-806,-788,-1202,-885,-890,-889,-838,-601,-618,-570,-1063,-1060,-1003,-1016,-1043,-878,-29971,-29972,-29974,-29970,-29967,-29968,-29988,-1083,-29989,-29990,-29993,-29993,-29993,-29990]} 1. e4 {[%emt 0:00:04]} c5 {[%emt 0:00:11]} 2. Nf3 {[%emt 0:00:11]} d6 {[%emt 0:00:05]} 3. d4 {[%emt 0:00:10]} cxd4 {[%emt 0:00:07]} 4. Nxd4 {[%emt 0:00:07]} Nf6 {[%emt 0:00:05]} 5. Nc3 {[%emt 0:00:14]} Nc6 {[%emt 0:00:10]} 6. f3 {[%emt 0:00:18]} e5 {[%emt 0:00:17]} 7. Nxc6 {[%emt 0:04:00] B56: Classical Sicilian: Unusual Lines.} ({White should play} 7. Nb3 $14) 7... bxc6 $11 {[%emt 0:00:35]} 8. Bc4 {[%emt 0:01:01]} Qb6 {[%emt 0:07:34]} 9. Bb3 {[%emt 0:01:41] The position is equal.} Be7 {[%emt 0:16:38]} 10. Qe2 {[%emt 0:02:09]} Ba6 {[%emt 0:01:31]} 11. Qe3 {[%emt 0:01:08] [#]} Qc7 $146 {[%emt 0:06:30][%cal Od6d5]} ({Predecessor:} 11... Qb7 12. Qf2 O-O 13. Bg5 Rad8 14. O-O-O Ng4 15. fxg4 Bxg5+ 16. Kb1 Qb6 17. Qf5 Be3 {0-1 (72) Singh,E-Tang,T (1811) Hong Kong 2015}) 12. Qf2 {[%emt 0:02:37]} O-O {[%emt 0:01:56][%cal Od6d5]} 13. Be3 {[%emt 0:00:20] [#]} (13. Bg5 $1 $11) 13... d5 $1 $36 {[%emt 0:08:25][%mdl 2048] Hoping for ...d4. White is under strong pressure.} 14. exd5 {[%emt 0:02:40]} cxd5 {[%emt 0:00:51][%cal Bc6d5,Bd5d4][%mdl 32]} 15. Na4 $2 {[%emt 0:20:38] White does not recover from this.} (15. Nxd5 $17 Nxd5 16. Bxd5) 15... d4 $19 {[%emt 0:01:21]} 16. Bg5 {[%emt 0:06:59]} (16. Bd2 {keeps fighting.} Qd7 17. c4) 16... Bb5 {[%emt 0:10:32][%cal Of6e4] aiming for ...Ne4!} 17. Bd2 {[%emt 0:13:17]} Qc6 {[%emt 0:01:55]} 18. Nc3 {[%emt 0:16:14]} dxc3 {[%emt 0:00:26]} 19. Bxc3 {[%emt 0:00:02]} Bc5 {[%emt 0:02:01]} 20. Qh4 {[%emt 0:02:27]} Rad8 {[%emt 0:02:23]} 21. Bd2 {[%emt 0:04:05]} e4 {[%emt 0:05:22][%cal Be5e4,Be4e3,Be3e2][%mdl 32]} 22. O-O-O {[%emt 0:08:23]} e3 {[%emt 0:01:49]} 23. Bc3 {[%emt 0:00:24]} Rxd1+ {[%emt 0:01:47]} 24. Rxd1 {[%emt 0:00:15]} e2 {[%emt 0:00:13]} 25. Re1 {[%emt 0:01:47]} Be3+ {[%emt 0:02:25]} 26. Bd2 {[%emt 0:01:22]} Bxd2+ {[%emt 0:00:21]} 27. Kxd2 {[%emt 0:00:03]} Rd8+ {[%emt 0:00:16]} 28. Kc1 {[%emt 0:00:17]} Qd6 {[%emt 0:01:10]} 29. c4 {[%emt 0:01:48]} Qd2+ {[%emt 0:00:10]} 30. Kb1 {[%emt 0:00:09] [#]} Bxc4 $1 {[%emt 0:01:05][%cal Bb5c4,Bc4d3,Bd3c2][%mdl 544] Black mates.} 31. Ba4 {[%emt 0:03:45]} (31. Rh1 Bxb3) 31... Bd3+ {[%emt 0:01:45]} 32. Ka1 {[%emt 0:00:23]} Bc2 {[%emt 0:00:12] Weighted Error Value: White=0.97/Black=0.37} 0-1

[Event "Cabo Verde Open 2022"]
[Site "Mindelo-S. Vicente"]
[Date "2022.04.26"]
[Round "5.5"]
[White "Lesbros, Bernard"]
[Black "Maisuradze, Nino"]
[Result "0-1"]
[ECO "A37"]
[WhiteElo "1865"]
[BlackElo "2202"]
[Annotator "TA"]
[PlyCount "67"]
[EventDate "2022.04.22"]
[EventType "swiss"]
[SourceTitle "playchess.com"]
[Source "ChessBase"]
[SourceQuality "1"]
[TimeControl "40/5400+30:1800+30"]

{[%evp 9,67,12,16,-15,0,0,0,0,8,-40,0,-19,-19,-51,-24,-19,-29,-48,-8,-31,9,-174,-170,-170,-168,-164,-145,-160,-177,-197,-188,-202,-199,-198,-194,-186,-183,-208,-196,-244,-260,-585,-585,-554,-581,-810,-799,-757,-725,-1189,-1164,-1815,-1753,-2468,-2263,-29989,-29986,-29993,-29994,-29994]} 1. Nf3 {[%emt 0:00:30]} c5 {[%emt 0:00:30]} 2. c4 {[%emt 0:00:30]} g6 {[%emt 0:00:30]} 3. Nc3 {[%emt 0:00:30]} Bg7 {[%emt 0:00:30]} 4. g3 {[%emt 0:00:30]} Nc6 {[%emt 0:00:30]} 5. Bg2 {[%emt 0:00:34]} e5 {[%emt 1:31:00]} 6. e3 {[%emt 0:04:08][%cal Od2d4] A37: Symmetrical English vs ...g6: 4 Bg2 Bg7 5 Nf3.} f5 {[%emt 0:00:00]} 7. d3 {[%emt 0:01:26] Against e4} Nge7 {[%emt 0:00:00] [#]} 8. h4 $146 {[%emt 0:00:56] The position is equal.} ({Predecessor:} 8. e4 d6 9. Nd5 O-O 10. Bd2 h6 11. Qc1 Kh7 12. h4 Nxd5 13. exd5 Nd4 14. Nxd4 cxd4 {0-1 (45) Lukinov,D (2167)-Stoockalov,V (2304) Alushta 2007}) 8... h6 {[%emt 0:00:00]} 9. Rb1 {[%emt 0:02:11]} (9. Nd2 $11) 9... d6 {[%emt 0:00:00]} 10. a3 {[%emt 0:01:08]} Be6 {[%emt 0:00:00]} 11. Bd2 {[%emt 0:04:14]} a5 {[%emt 0:00:00]} 12. Qc2 {[%emt 0:03:27]} O-O {[%emt 0:00:00]} 13. O-O {[%emt 0:06:33]} Qd7 {[%emt 0:00:00]} 14. Nb5 {[%emt 0:03:45]} e4 {[%emt 0:00:00]} 15. Nh2 {[%emt 0:05:59] [#] White does not recover from this.} ({Much worse is} 15. dxe4 fxe4 16. Nh2 (16. Qxe4 $2 Bf5 $19) 16... Ne5 $17) (15. Ne1 $1 $11) 15... Ne5 {[%emt 0:00:00]} 16. dxe4 {[%emt 0:13:45]} Bxc4 {[%emt 0:00:00]} 17. Nc3 {[%emt 0:11:01]} Bd3 {[%emt 0:00:00]} 18. Qd1 {[%emt 0:00:37]} fxe4 {[%emt 0:00:00] 0x0.002067211c69dp-1022s more active pieces.} 19. Bxe4 {[%emt 0:03:13]} Bxf1 {[%emt 0:00:00] Really sharp!} 20. Qxf1 {[%emt 0:02:29]} d5 {[%emt 0:00:00]} 21. Bg2 {[%emt 0:02:19]} c4 {[%emt 0:00:00]} 22. Ne2 {[%emt 0:09:45]} Nd3 {[%emt 0:00:00][%csl LRb2,LRf2][%cal Be5d3,Bd3b2,Bb2a4,Ba4c3][%mdl 32]} 23. Nf4 {[%emt 0:01:28]} Nxb2 {[%emt 0:00:00]} 24. Bc1 {[%emt 0:10:05]} (24. Qc1 {was worth a try.} g5 25. hxg5 hxg5 26. Nxd5 Nxd5 27. Rxb2) 24... Na4 $19 {[%emt 0:00:00]} 25. Nxd5 $2 {[%emt 0:02:42] [#]} (25. Bd2) 25... Nxd5 {[%emt 0:00:00]} 26. Qxc4 {[%emt 0:01:44][%cal Ob1b7]} Nac3 {[%emt 0:00:00]} 27. Rb3 {[%emt 0:05:16]} Rac8 {[%emt 0:00:00]} 28. Qd3 {[%emt 0:00:36]} Qf7 {[%emt 0:00:00]} 29. Ng4 {[%emt 0:00:56]} h5 {[%emt 0:00:00][%cal Bh6h5,Bh5g4][%mdl 32]} 30. Rxc3 {[%emt 0:00:52]} Nxc3 {[%emt 0:00:00]} 31. Bb2 {[%emt 0:00:40]} hxg4 {[%emt 0:00:00]} 32. Bxc3 {[%emt 0:00:15]} Rxc3 {[%emt 0:00:00]} 33. Qd6 {[%emt 0:00:16]} Qxf2+ {[%emt 0:00:00]} 34. Kh2 {[%emt 0:00:14] Weighted Error Value: White=1.03/Black=0.07 (flawless)} 0-1